[Event "*** Titled Tuesday Blitz"]
[Site "Chess.com"]
[Date "2019.05.07"]
[Round "8"]
[White "Gubajdullin"]
[Black "ChessQueen"]
[Result "1/2-1/2"]
[WhiteElo "2551"]
[BlackElo "2641"]
[TimeControl "180+2"]
[EndTime "14:56:36 PDT"]
[Termination "Game drawn by stalemate"]

1. d4 {[%clk 0:03:01]} 1... Nf6 {[%clk 0:03:00.8]} 2. Bf4 {[%clk 0:03:01.9]}
2... g6 {[%clk 0:02:58.4]} 3. e3 {[%clk 0:03:03]} 3... Bg7 {[%clk 0:02:59]} 4.
Nf3 {[%clk 0:03:04.2]} 4... d6 {[%clk 0:03:00.2]} 5. Be2 {[%clk 0:03:05.3]} 5...
Nbd7 {[%clk 0:02:59]} 6. O-O {[%clk 0:03:05.8]} 6... O-O {[%clk 0:03:00]} 7. h3
{[%clk 0:03:03.8]} 7... c5 {[%clk 0:03:00.1]} 8. c3 {[%clk 0:03:03.6]} 8... Rb8
{[%clk 0:02:56.7]} 9. a4 {[%clk 0:03:02.7]} 9... b6 {[%clk 0:02:56.5]} 10. Na3
{[%clk 0:03:02.3]} 10... a6 {[%clk 0:02:53.5]} 11. Qb3 {[%clk 0:03:00.3]} 11...
Bb7 {[%clk 0:02:50.8]} 12. Rfd1 {[%clk 0:03:01]} 12... Qc8 {[%clk 0:02:45.2]}
13. d5 {[%clk 0:02:51.9]} 13... Ne4 {[%clk 0:02:29.4]} 14. c4 {[%clk 0:02:49.8]}
14... f5 {[%clk 0:02:28.3]} 15. Qc2 {[%clk 0:02:36.6]} 15... h6 {[%clk
0:02:28.1]} 16. Bh2 {[%clk 0:02:33.1]} 16... Qe8 {[%clk 0:02:21.9]} 17. Nb1
{[%clk 0:02:25.4]} 17... Ndf6 {[%clk 0:02:18.5]} 18. Nbd2 {[%clk 0:02:23.6]}
18... b5 {[%clk 0:02:10.6]} 19. axb5 {[%clk 0:02:21.6]} 19... axb5 {[%clk
0:02:11.6]} 20. b3 {[%clk 0:02:19.8]} 20... bxc4 {[%clk 0:02:01.2]} 21. bxc4
{[%clk 0:02:19.8]} 21... g5 {[%clk 0:01:51]} 22. Ra7 {[%clk 0:02:16.7]} 22...
Bc8 {[%clk 0:01:46.9]} 23. Nf1 {[%clk 0:01:36.6]} 23... g4 {[%clk 0:01:42.5]}
24. Nh4 {[%clk 0:01:36.5]} 24... gxh3 {[%clk 0:01:28.9]} 25. gxh3 {[%clk
0:01:32.6]} 25... f4 {[%clk 0:01:03.8]} 26. Bxf4 {[%clk 0:01:25.7]} 26... Bxh3
{[%clk 0:01:04.5]} 27. Ng3 {[%clk 0:01:25.7]} 27... Nxg3 {[%clk 0:00:55.9]} 28.
Bxg3 {[%clk 0:01:26.3]} 28... Nd7 {[%clk 0:00:31.1]} 29. Bd3 {[%clk 0:01:12.2]}
29... Ne5 {[%clk 0:00:20.4]} 30. Bh7+ {[%clk 0:01:08.8]} 30... Kh8 {[%clk
0:00:21.5]} 31. Bxe5 {[%clk 0:00:48.9]} 31... Bxe5 {[%clk 0:00:22.4]} 32. Ng6+
{[%clk 0:00:49.9]} 32... Kxh7 {[%clk 0:00:18.6]} 33. Nxf8+ {[%clk 0:00:50.6]}
33... Kg7 {[%clk 0:00:16.8]} 34. Qh7+ {[%clk 0:00:36.2]} 34... Kxf8 {[%clk
0:00:18.2]} 35. Qxh6+ {[%clk 0:00:37.2]} 35... Bg7 {[%clk 0:00:19.5]} 36. Qxh3
{[%clk 0:00:37.9]} 36... Qg6+ {[%clk 0:00:20.8]} 37. Qg2 {[%clk 0:00:35.6]}
37... Qc2 {[%clk 0:00:20.8]} 38. Qf3+ {[%clk 0:00:35.4]} 38... Kg8 {[%clk
0:00:21.4]} 39. Kg2 {[%clk 0:00:34.3]} 39... Rf8 {[%clk 0:00:21.6]} 40. Qg3
{[%clk 0:00:18.5]} 40... Qxd1 {[%clk 0:00:20.6]} 41. Rxe7 {[%clk 0:00:19.2]}
41... Qa1 {[%clk 0:00:19.5]} 42. Qxd6 {[%clk 0:00:17.2]} 42... Qf6 {[%clk
0:00:17]} 43. Qxf6 {[%clk 0:00:12.8]} 43... Rxf6 {[%clk 0:00:18.1]} 44. Rc7
{[%clk 0:00:13.8]} 44... Bf8 {[%clk 0:00:19.3]} 45. f4 {[%clk 0:00:13.1]} 45...
Ra6 {[%clk 0:00:17.5]} 46. e4 {[%clk 0:00:09.6]} 46... Ra4 {[%clk 0:00:18.6]}
47. e5 {[%clk 0:00:08.7]} 47... Rxc4 {[%clk 0:00:19.7]} 48. Kf3 {[%clk
0:00:09.9]} 48... Rd4 {[%clk 0:00:18.3]} 49. d6 {[%clk 0:00:10.7]} 49... c4
{[%clk 0:00:19.8]} 50. Kg4 {[%clk 0:00:09]} 50... Bxd6 {[%clk 0:00:14.6]} 51.
exd6 {[%clk 0:00:09.1]} 51... Rxd6 {[%clk 0:00:15.5]} 52. Rxc4 {[%clk
0:00:10.1]} 52... Kf7 {[%clk 0:00:16.8]} 53. Kg5 {[%clk 0:00:10.1]} 53... Ra6
{[%clk 0:00:16.6]} 54. f5 {[%clk 0:00:11.2]} 54... Rb6 {[%clk 0:00:16.7]} 55.
Rc7+ {[%clk 0:00:12.1]} 55... Kf8 {[%clk 0:00:17.7]} 56. Rd7 {[%clk 0:00:13.2]}
56... Ra6 {[%clk 0:00:18.8]} 57. Rh7 {[%clk 0:00:13.8]} 57... Rb6 {[%clk
0:00:19.7]} 58. Rh5 {[%clk 0:00:14]} 58... Ra6 {[%clk 0:00:18.7]} 59. Rh4 {[%clk
0:00:15.3]} 59... Rb6 {[%clk 0:00:19.8]} 60. Ra4 {[%clk 0:00:15.8]} 60... Rc6
{[%clk 0:00:20.8]} 61. Ra7 {[%clk 0:00:15.5]} 61... Rb6 {[%clk 0:00:21.7]} 62.
Ra8+ {[%clk 0:00:16.6]} 62... Kf7 {[%clk 0:00:22.7]} 63. Ra7+ {[%clk 0:00:17.7]}
63... Kf8 {[%clk 0:00:24]} 64. Rd7 {[%clk 0:00:18.2]} 64... Ra6 {[%clk
0:00:24.7]} 65. Kf4 {[%clk 0:00:18.4]} 65... Rb6 {[%clk 0:00:25.6]} 66. Ke5
{[%clk 0:00:19.3]} 66... Ra6 {[%clk 0:00:26.9]} 67. Rh7 {[%clk 0:00:17.7]} 67...
Rb6 {[%clk 0:00:27.8]} 68. Kf4 {[%clk 0:00:18.5]} 68... Ra6 {[%clk 0:00:28.8]}
69. Rd7 {[%clk 0:00:18.8]} 69... Rb6 {[%clk 0:00:30]} 70. Rd4 {[%clk 0:00:19.6]}
70... Ra6 {[%clk 0:00:31]} 71. Re4 {[%clk 0:00:20.6]} 71... Rb6 {[%clk
0:00:32.3]} 72. Kg5 {[%clk 0:00:20.4]} 72... Ra6 {[%clk 0:00:33.2]} 73. Re5
{[%clk 0:00:21.1]} 73... Rb6 {[%clk 0:00:34.5]} 74. Re6 {[%clk 0:00:21.3]} 74...
Rxe6 {[%clk 0:00:35.5]} 75. fxe6 {[%clk 0:00:22.5]} 75... Ke7 {[%clk 0:00:36.4]}
76. Kf5 {[%clk 0:00:23.7]} 76... Ke8 {[%clk 0:00:37]} 77. Ke5 {[%clk 0:00:24.4]}
77... Ke7 {[%clk 0:00:38]} 78. Kd5 {[%clk 0:00:25.4]} 78... Ke8 {[%clk
0:00:39.2]} 79. Kc6 {[%clk 0:00:26.7]} 79... Ke7 {[%clk 0:00:40.2]} 80. Kd5
{[%clk 0:00:27.8]} 80... Ke8 {[%clk 0:00:41.6]} 81. Kd6 {[%clk 0:00:29.1]} 81...
Kd8 {[%clk 0:00:42.7]} 82. Ke5 {[%clk 0:00:30.2]} 82... Ke7 {[%clk 0:00:43.6]}
83. Kf5 {[%clk 0:00:30.9]} 83... Ke8 {[%clk 0:00:43.7]} 84. Kf6 {[%clk
0:00:31.9]} 84... Kf8 {[%clk 0:00:44.8]} 85. Kg6 {[%clk 0:00:33]} 85... Ke7
{[%clk 0:00:45.6]} 86. Kf5 {[%clk 0:00:33.3]} 86... Ke8 {[%clk 0:00:46.9]} 87.
Ke4 {[%clk 0:00:33.9]} 87... Ke7 {[%clk 0:00:48]} 88. Ke5 {[%clk 0:00:34.8]}
88... Ke8 {[%clk 0:00:49.4]} 89. Kd5 {[%clk 0:00:36]} 89... Ke7 {[%clk
0:00:50.2]} 90. Ke5 {[%clk 0:00:36.9]} 90... Ke8 {[%clk 0:00:51.5]} 91. Kf6
{[%clk 0:00:38.1]} 91... Kf8 {[%clk 0:00:52.5]} 92. e7+ {[%clk 0:00:39.4]} 92...
Ke8 {[%clk 0:00:53]} 93. Ke6 {[%clk 0:00:40.6]} 1/2-1/2

[Event "*** Titled Tuesday Blitz"]
[Site "Chess.com"]
[Date "2019.05.07"]
[Round "8"]
[White "bugsbunny444"]
[Black "r31415"]
[Result "1-0"]
[WhiteElo "2557"]
[BlackElo "2374"]
[TimeControl "180+2"]
[EndTime "14:56:44 PDT"]
[Termination "bugsbunny444 won by checkmate"]

1. Nf3 {[%clk 0:03:01.9]} 1... Nf6 {[%clk 0:02:59.5]} 2. c4 {[%clk 0:03:02.6]}
2... e6 {[%clk 0:03:00.6]} 3. g3 {[%clk 0:03:03.3]} 3... b6 {[%clk 0:03:01.9]}
4. Bg2 {[%clk 0:03:05.2]} 4... Bb7 {[%clk 0:03:02.4]} 5. O-O {[%clk 0:03:07.1]}
5... c5 {[%clk 0:03:03.7]} 6. b3 {[%clk 0:03:09]} 6... Be7 {[%clk 0:03:05]} 7.
Bb2 {[%clk 0:03:10.5]} 7... O-O {[%clk 0:03:06.5]} 8. Nc3 {[%clk 0:03:12.1]}
8... d6 {[%clk 0:03:07.8]} 9. e3 {[%clk 0:03:13.5]} 9... Nbd7 {[%clk 0:03:09.2]}
10. d4 {[%clk 0:03:15.1]} 10... cxd4 {[%clk 0:03:09.9]} 11. Nxd4 {[%clk
0:03:15.9]} 11... Bxg2 {[%clk 0:03:10.3]} 12. Kxg2 {[%clk 0:03:17.8]} 12... Qc7
{[%clk 0:03:11.2]} 13. f4 {[%clk 0:03:19.4]} 13... a6 {[%clk 0:03:02.7]} 14. Qf3
{[%clk 0:03:20.4]} 14... Rac8 {[%clk 0:02:59.7]} 15. Rad1 {[%clk 0:03:13]} 15...
Rfd8 {[%clk 0:02:58.9]} 16. Rd2 {[%clk 0:03:13.6]} 16... Nc5 {[%clk 0:02:52.5]}
17. Rfd1 {[%clk 0:03:10.9]} 17... Qb7 {[%clk 0:02:51.5]} 18. Qxb7 {[%clk
0:03:05.7]} 18... Nxb7 {[%clk 0:02:51.6]} 19. Kf3 {[%clk 0:03:06.3]} 19... d5
{[%clk 0:02:21.1]} 20. cxd5 {[%clk 0:03:06.1]} 20... Nxd5 {[%clk 0:02:23]} 21.
Nf5 {[%clk 0:01:59]} 21... Nxc3 {[%clk 0:01:19.2]} 22. Nxe7+ {[%clk 0:01:59.2]}
22... Kf8 {[%clk 0:01:20.2]} 23. Rxd8+ {[%clk 0:01:56.7]} 23... Nxd8 {[%clk
0:00:35.5]} 24. Nxc8 {[%clk 0:01:44.3]} 24... Nxd1 {[%clk 0:00:35.1]} 25. Ba3+
{[%clk 0:01:45.5]} 25... Ke8 {[%clk 0:00:31.8]} 26. Nxb6 {[%clk 0:01:45.1]}
26... Nc3 {[%clk 0:00:31]} 27. Bb2 {[%clk 0:01:43.9]} 27... Nxa2 {[%clk
0:00:27.7]} 28. Bxg7 {[%clk 0:01:43.9]} 28... Nc1 {[%clk 0:00:29]} 29. b4 {[%clk
0:01:38.9]} 29... Nc6 {[%clk 0:00:25.8]} 30. Kg4 {[%clk 0:01:23.7]} 30... f5+
{[%clk 0:00:21.9]} 31. Kg5 {[%clk 0:01:20.1]} 31... Kf7 {[%clk 0:00:23.8]} 32.
Kh6 {[%clk 0:01:15.9]} 32... Kg8 {[%clk 0:00:20.6]} 33. Nd7 {[%clk 0:01:05]}
33... Nd3 {[%clk 0:00:05]} 34. Nf6+ {[%clk 0:00:58.4]} 34... Kf7 {[%clk
0:00:06.3]} 35. Nxh7 {[%clk 0:00:59.8]} 35... Ncxb4 {[%clk 0:00:06.5]} 36. Ng5+
{[%clk 0:00:59.2]} 36... Ke7 {[%clk 0:00:07.6]} 37. Kg6 {[%clk 0:00:57.1]} 37...
Nf2 {[%clk 0:00:08.6]} 38. h4 {[%clk 0:00:46.3]} 38... Ng4 {[%clk 0:00:09.5]}
39. h5 {[%clk 0:00:47.3]} 39... Nd5 {[%clk 0:00:10.8]} 40. h6 {[%clk 0:00:47.7]}
40... Nxh6 {[%clk 0:00:12.1]} 41. Kxh6 {[%clk 0:00:39.6]} 41... Nxe3 {[%clk
0:00:14]} 42. Bc3 {[%clk 0:00:32.2]} 42... Nd5 {[%clk 0:00:07]} 43. Ba5 {[%clk
0:00:29.9]} 43... Ne3 {[%clk 0:00:04]} 44. Kh5 {[%clk 0:00:22]} 44... Nf1 {[%clk
0:00:04]} 45. Kh4 {[%clk 0:00:22.9]} 45... Ne3 {[%clk 0:00:03.8]} 46. Kh3 {[%clk
0:00:16.9]} 46... Ng4 {[%clk 0:00:04.8]} 47. Kg2 {[%clk 0:00:16.8]} 47... Ne3+
{[%clk 0:00:05.9]} 48. Kf3 {[%clk 0:00:17.6]} 48... Ng4 {[%clk 0:00:05.4]} 49.
Bc3 {[%clk 0:00:13]} 49... Kd6 {[%clk 0:00:06.5]} 50. Nf7+ {[%clk 0:00:14]}
50... Kd5 {[%clk 0:00:07.4]} 51. Ne5 {[%clk 0:00:15]} 51... Nh6 {[%clk
0:00:05.8]} 52. Ba5 {[%clk 0:00:08.3]} 52... Ng8 {[%clk 0:00:04.9]} 53. Bd8
{[%clk 0:00:08.4]} 53... Nh6 {[%clk 0:00:04.4]} 54. Ke3 {[%clk 0:00:08.6]} 54...
Ng8 {[%clk 0:00:03.9]} 55. Kd3 {[%clk 0:00:09.6]} 55... Kc5 {[%clk 0:00:04]} 56.
Kc3 {[%clk 0:00:05.3]} 56... Kb5 {[%clk 0:00:03.3]} 57. Kd4 {[%clk 0:00:05.8]}
57... a5 {[%clk 0:00:03.6]} 58. Nd3 {[%clk 0:00:03.6]} 58... Nh6 {[%clk
0:00:03.5]} 59. Ke5 {[%clk 0:00:04.2]} 59... Nf7+ {[%clk 0:00:04.7]} 60. Kxe6
{[%clk 0:00:05.7]} 60... Nxd8+ {[%clk 0:00:06.6]} 61. Kxf5 {[%clk 0:00:07.2]}
61... Kc4 {[%clk 0:00:07.7]} 62. Ne5+ {[%clk 0:00:04.4]} 62... Kc3 {[%clk
0:00:08.8]} 63. g4 {[%clk 0:00:03.7]} 63... a4 {[%clk 0:00:10.2]} 64. g5 {[%clk
0:00:05.2]} 64... a3 {[%clk 0:00:11.1]} 65. g6 {[%clk 0:00:06.7]} 65... a2
{[%clk 0:00:09.5]} 66. g7 {[%clk 0:00:08.2]} 66... a1=Q {[%clk 0:00:10.4]} 67.
g8=Q {[%clk 0:00:09.7]} 67... Qb1+ {[%clk 0:00:10.9]} 68. Kf6 {[%clk 0:00:10.5]}
68... Qb6+ {[%clk 0:00:11.1]} 69. Kf5 {[%clk 0:00:08.1]} 69... Qb1+ {[%clk
0:00:11.9]} 70. Kf6 {[%clk 0:00:06]} 70... Qb6+ {[%clk 0:00:12.8]} 71. Ke7
{[%clk 0:00:03.6]} 71... Qc7+ {[%clk 0:00:10.7]} 72. Kf6 {[%clk 0:00:04.9]}
72... Qd6+ {[%clk 0:00:11.1]} 73. Kf5 {[%clk 0:00:06.2]} 73... Kc2 {[%clk
0:00:03.2]} 74. Qc4+ {[%clk 0:00:05.3]} 74... Kb2 {[%clk 0:00:03.2]} 75. Nd3+
{[%clk 0:00:05.5]} 75... Ka1 {[%clk 0:00:02.7]} 76. Qc3+ {[%clk 0:00:05.1]}
76... Ka2 {[%clk 0:00:04.6]} 77. Qb2# {[%clk 0:00:06.3]} 1-0

[Event "*** Titled Tuesday Blitz"]
[Site "Chess.com"]
[Date "2019.05.07"]
[Round "8"]
[White "Msb2"]
[Black "champ2005"]
[Result "1/2-1/2"]
[WhiteElo "2964"]
[BlackElo "2899"]
[TimeControl "180+2"]
[EndTime "14:56:56 PDT"]
[Termination "Game drawn - insufficient material"]

1. d4 {[%clk 0:03:01.9]} 1... Nf6 {[%clk 0:02:59.4]} 2. c4 {[%clk 0:03:03.2]}
2... g6 {[%clk 0:03:00.5]} 3. Nc3 {[%clk 0:03:04.5]} 3... Bg7 {[%clk 0:03:01.8]}
4. e4 {[%clk 0:03:05.8]} 4... d6 {[%clk 0:03:03.4]} 5. Be2 {[%clk 0:03:07.5]}
5... O-O {[%clk 0:03:04.4]} 6. Be3 {[%clk 0:03:09.1]} 6... Na6 {[%clk
0:02:58.8]} 7. Nf3 {[%clk 0:03:10.1]} 7... c5 {[%clk 0:02:57]} 8. d5 {[%clk
0:03:05.9]} 8... Nc7 {[%clk 0:02:58]} 9. O-O {[%clk 0:03:05.1]} 9... Bd7 {[%clk
0:02:56.3]} 10. a4 {[%clk 0:03:05.8]} 10... b6 {[%clk 0:02:57.3]} 11. h3 {[%clk
0:03:05.5]} 11... Nfe8 {[%clk 0:02:49.9]} 12. Qd2 {[%clk 0:03:05.6]} 12... a6
{[%clk 0:02:47.5]} 13. Rfe1 {[%clk 0:03:05.5]} 13... Rb8 {[%clk 0:02:47.8]} 14.
Bh6 {[%clk 0:02:32.8]} 14... f6 {[%clk 0:02:45.3]} 15. Bxg7 {[%clk 0:02:32.8]}
15... Nxg7 {[%clk 0:02:46.5]} 16. Rab1 {[%clk 0:02:28.2]} 16... b5 {[%clk
0:02:33.4]} 17. axb5 {[%clk 0:02:27.3]} 17... axb5 {[%clk 0:02:34.7]} 18. cxb5
{[%clk 0:02:26.8]} 18... Nxb5 {[%clk 0:02:36.6]} 19. Bxb5 {[%clk 0:02:27.5]}
19... Bxb5 {[%clk 0:02:38.5]} 20. b4 {[%clk 0:02:29.4]} 20... cxb4 {[%clk
0:02:35.6]} 21. Rxb4 {[%clk 0:02:31.3]} 21... Bd7 {[%clk 0:02:36.8]} 22. Reb1
{[%clk 0:02:29.5]} 22... Qc7 {[%clk 0:02:37.7]} 23. Nd4 {[%clk 0:02:25.2]} 23...
Rxb4 {[%clk 0:02:38.5]} 24. Rxb4 {[%clk 0:02:27.1]} 24... Rb8 {[%clk 0:02:39.8]}
25. Qb2 {[%clk 0:02:26.7]} 25... Rxb4 {[%clk 0:02:40.2]} 26. Qxb4 {[%clk
0:02:28.6]} 26... Nh5 {[%clk 0:02:34]} 27. Nce2 {[%clk 0:02:18.8]} 27... Nf4
{[%clk 0:02:25.4]} 28. Qd2 {[%clk 0:02:05.3]} 28... Nxe2+ {[%clk 0:02:26.2]} 29.
Nxe2 {[%clk 0:02:06.7]} 29... Qc4 {[%clk 0:02:26.1]} 30. Nd4 {[%clk 0:02:06.3]}
30... Kf7 {[%clk 0:02:20.7]} 31. h4 {[%clk 0:02:06.7]} 31... h5 {[%clk
0:02:07.7]} 32. f3 {[%clk 0:02:07.8]} 32... Kg7 {[%clk 0:02:07.2]} 33. Kf2
{[%clk 0:02:08.2]} 33... e6 {[%clk 0:01:54.3]} 34. dxe6 {[%clk 0:01:51.2]} 34...
Bxe6 {[%clk 0:01:56.2]} 35. Qb2 {[%clk 0:01:48.1]} 35... Bf7 {[%clk 0:01:49]}
36. Ne2 {[%clk 0:01:31.8]} 36... Qc5+ {[%clk 0:01:50.1]} 37. Qd4 {[%clk
0:01:32.5]} 37... Qxd4+ {[%clk 0:01:51.4]} 38. Nxd4 {[%clk 0:01:34.4]} 38... d5
{[%clk 0:01:53]} 39. Ke3 {[%clk 0:01:31.4]} 39... dxe4 {[%clk 0:01:54.2]} 40.
fxe4 {[%clk 0:01:31.8]} 40... Kf8 {[%clk 0:01:53.5]} 41. Kf4 {[%clk 0:01:32.5]}
41... Ke7 {[%clk 0:01:53.2]} 42. e5 {[%clk 0:01:34]} 42... fxe5+ {[%clk
0:01:53.8]} 43. Kxe5 {[%clk 0:01:35.3]} 43... Be8 {[%clk 0:01:53.9]} 44. g3
{[%clk 0:01:35.7]} 44... Bd7 {[%clk 0:01:53.8]} 45. Ne2 {[%clk 0:01:34.7]} 45...
Bf5 {[%clk 0:01:50.2]} 46. Nf4 {[%clk 0:01:35.9]} 46... Bb1 {[%clk 0:01:49.9]}
47. Nd5+ {[%clk 0:01:34.4]} 47... Kf7 {[%clk 0:01:51.2]} 48. Nb4 {[%clk
0:01:19.7]} 48... Ke7 {[%clk 0:01:44.8]} 49. Nc6+ {[%clk 0:01:13.9]} 49... Kf7
{[%clk 0:01:45.6]} 50. Nd8+ {[%clk 0:01:10.7]} 50... Ke7 {[%clk 0:01:43.7]} 51.
Ne6 {[%clk 0:01:12.2]} 51... Bf5 {[%clk 0:01:43.5]} 52. Nc5 {[%clk 0:00:57.5]}
52... Bc2 {[%clk 0:01:42.3]} 53. Kf4 {[%clk 0:00:53.6]} 53... Kf6 {[%clk
0:01:36.5]} 54. Nd7+ {[%clk 0:00:54.7]} 54... Ke7 {[%clk 0:01:36.7]} 55. Nb6
{[%clk 0:00:55]} 55... Kf6 {[%clk 0:01:28.4]} 56. Nd5+ {[%clk 0:00:55.7]} 56...
Ke6 {[%clk 0:01:27.4]} 57. Ne3 {[%clk 0:00:56.9]} 57... Bd3 {[%clk 0:01:26.8]}
58. Kg5 {[%clk 0:00:57.7]} 58... Kf7 {[%clk 0:01:27.9]} 59. Nd5 {[%clk
0:00:55.6]} 59... Kg7 {[%clk 0:01:24.9]} 60. Nb4 {[%clk 0:00:50.6]} 60... Bb1
{[%clk 0:01:25.7]} 61. Nc6 {[%clk 0:00:51.7]} 61... Bc2 {[%clk 0:01:25]} 62. Ne5
{[%clk 0:00:52.9]} 62... Bb1 {[%clk 0:01:25.8]} 63. Nd7 {[%clk 0:00:51.4]} 63...
Bc2 {[%clk 0:01:24.8]} 64. Kf4 {[%clk 0:00:47.3]} 64... Bf5 {[%clk 0:01:22.9]}
65. Nb6 {[%clk 0:00:46.2]} 65... Kf7 {[%clk 0:01:18.2]} 66. Ke5 {[%clk
0:00:46.9]} 66... Bb1 {[%clk 0:01:18.9]} 67. Nc4 {[%clk 0:00:47.7]} 67... Bc2
{[%clk 0:01:16.9]} 68. Nd2 {[%clk 0:00:46.7]} 68... Ke7 {[%clk 0:01:13.5]} 69.
Nf3 {[%clk 0:00:47.3]} 69... Kf7 {[%clk 0:01:14.6]} 70. Ng5+ {[%clk 0:00:45.8]}
70... Ke7 {[%clk 0:01:15.3]} 71. Ne6 {[%clk 0:00:45.6]} 71... Bf5 {[%clk
0:01:13.3]} 72. Nf4 {[%clk 0:00:46.1]} 72... Bb1 {[%clk 0:01:12.2]} 73. Ng2
{[%clk 0:00:45.3]} 73... Bc2 {[%clk 0:01:10.4]} 74. Ne3 {[%clk 0:00:46]} 74...
Bb1 {[%clk 0:01:11.3]} 75. Kf4 {[%clk 0:00:46.5]} 75... Kf6 {[%clk 0:01:11.4]}
76. Nd5+ {[%clk 0:00:47.5]} 76... Kf7 {[%clk 0:01:09.8]} 77. Kg5 {[%clk
0:00:48.4]} 77... Kg7 {[%clk 0:01:10.9]} 78. Nc7 {[%clk 0:00:47.2]} 78... Ba2
{[%clk 0:00:59.3]} 79. Ne8+ {[%clk 0:00:43.1]} 79... Kf7 {[%clk 0:01:00.4]} 80.
Nd6+ {[%clk 0:00:43.3]} 80... Kg7 {[%clk 0:01:01.5]} 81. Ne4 {[%clk 0:00:37.5]}
81... Bb1 {[%clk 0:01:02.3]} 82. Nc5 {[%clk 0:00:38.7]} 82... Ba2 {[%clk
0:00:59]} 83. Nd3 {[%clk 0:00:36.4]} 83... Bb1 {[%clk 0:00:59.3]} 84. Nf4 {[%clk
0:00:34.5]} 84... Bc2 {[%clk 0:00:57.7]} 85. Ne6+ {[%clk 0:00:33.4]} 85... Kf7
{[%clk 0:00:58.7]} 86. Nd4 {[%clk 0:00:34]} 86... Bd3 {[%clk 0:00:55.3]} 87. Nf3
{[%clk 0:00:25.4]} 87... Kg7 {[%clk 0:00:55.7]} 88. Ne5 {[%clk 0:00:25.8]} 88...
Bb1 {[%clk 0:00:56.6]} 89. Nc4 {[%clk 0:00:23.3]} 89... Bc2 {[%clk 0:00:55.9]}
90. Ne3 {[%clk 0:00:24.6]} 90... Bb1 {[%clk 0:00:56]} 91. g4 {[%clk 0:00:25.4]}
91... hxg4 {[%clk 0:00:56.4]} 92. Nxg4 {[%clk 0:00:27.3]} 92... Bc2 {[%clk
0:00:56]} 93. Ne5 {[%clk 0:00:29.2]} 93... Bb1 {[%clk 0:00:57.2]} 94. Nxg6
{[%clk 0:00:27.3]} 94... Bxg6 {[%clk 0:00:58]} 95. h5 {[%clk 0:00:29.2]} 95...
Bxh5 {[%clk 0:00:59.6]} 1/2-1/2